[Event "Titled Tuesday Blitz February 22 Late 2022"]
[White "Barp, Alberto"]
[Black "Abdrlauf, Elham"]
[WhiteFideId "872555"]
[BlackFideId "1533533"]
[WhiteElo "2229"]
[BlackElo "2334"]
[Result "0-1"]
[Round "09"]
[TimeControl "180+1"]
[Date "2022.02.22"]
[WhiteClock "0:01:08"]
[BlackClock "0:01:41"]

1. d4 {[%clk 0:02:57]}  Nf6 {[%clk 0:02:59]} 2. c4 {[%clk 0:02:57]}  e6 {[%clk 0:03:00]} 3. g3 {[%clk 0:02:57]}  d5 {[%clk 0:03:00]} 4. Bg2 {[%clk 0:02:54]}  dxc4 {[%clk 0:03:01]} 5. Nf3 {[%clk 0:02:53]}  a6 {[%clk 0:03:00]} 6. O-O {[%clk 0:02:52]}  Nc6 {[%clk 0:03:00]} 7. Bg5 {[%clk 0:02:50]}  Be7 {[%clk 0:02:57]} 8. e3 {[%clk 0:02:48]}  Rb8 {[%clk 0:02:53]} 9. Nfd2 {[%clk 0:02:43]}  e5 {[%clk 0:02:46]} 10. Bxc6+ {[%clk 0:02:27]}  bxc6 {[%clk 0:02:47]} 11. dxe5 {[%clk 0:02:27]}  Ng4 {[%clk 0:02:36]} 12. Bxe7 {[%clk 0:02:27]}  Qxe7 {[%clk 0:02:37]} 13. Nxc4 {[%clk 0:02:27]}  h5 {[%clk 0:02:16]} 14. Nbd2 {[%clk 0:01:15]}  h4 {[%clk 0:02:12]} 15. f3 {[%clk 0:01:15]}  Nxh2 {[%clk 0:01:50]} 16. Kxh2 {[%clk 0:01:10]}  hxg3+ {[%clk 0:01:50]} 17. Kg1 {[%clk 0:01:08]}  Qh4 {[%clk 0:01:41]} 0-1


[Site "https://www.chess.com"]

[Event "Titled Tuesday Blitz February 22 Late 2022"]
[White "Baskin, Robert"]
[Black "Yuan, Qingyu"]
[WhiteFideId "24662402"]
[BlackFideId "8609772"]
[WhiteElo "2488"]
[BlackElo "2359"]
[Result "1-0"]
[Round "09"]
[TimeControl "180+1"]
[Date "2022.02.22"]
[WhiteClock "0:00:21"]
[BlackClock "0:00:15"]

1. d4 {[%clk 0:03:00]}  d5 {[%clk 0:03:00]} 2. c4 {[%clk 0:03:00]}  e6 {[%clk 0:03:00]} 3. Nf3 {[%clk 0:03:00]}  Nf6 {[%clk 0:03:01]} 4. g3 {[%clk 0:03:00]}  dxc4 {[%clk 0:03:01]} 5. Bg2 {[%clk 0:03:00]}  c5 {[%clk 0:03:02]} 6. O-O {[%clk 0:02:59]}  Nc6 {[%clk 0:03:02]} 7. Ne5 {[%clk 0:02:58]}  Bd7 {[%clk 0:03:02]} 8. Na3 {[%clk 0:02:56]}  cxd4 {[%clk 0:03:02]} 9. Naxc4 {[%clk 0:02:56]}  Be7 {[%clk 0:03:03]} 10. b3 {[%clk 0:02:54]}  O-O {[%clk 0:02:53]} 11. Bb2 {[%clk 0:02:50]}  Rc8 {[%clk 0:02:33]} 12. Rc1 {[%clk 0:02:11]}  b5 {[%clk 0:02:14]} 13. Nxc6 {[%clk 0:02:04]}  Bxc6 {[%clk 0:02:14]} 14. Bxc6 {[%clk 0:02:00]}  Rxc6 {[%clk 0:02:14]} 15. Ne5 {[%clk 0:01:58]}  Rxc1 {[%clk 0:02:13]} 16. Qxc1 {[%clk 0:01:58]}  Qd5 {[%clk 0:02:10]} 17. Qf4 {[%clk 0:01:44]}  Bd6 {[%clk 0:01:59]} 18. Qxd4 {[%clk 0:01:38]}  Rc8 {[%clk 0:01:48]} 19. Qxd5 {[%clk 0:01:27]}  Nxd5 {[%clk 0:01:47]} 20. Nd3 {[%clk 0:01:27]}  Rc2 {[%clk 0:01:09]} 21. Rc1 {[%clk 0:01:22]}  Rxc1+ {[%clk 0:01:10]} 22. Nxc1 {[%clk 0:01:20]}  Nb4 {[%clk 0:01:01]} 23. a4 {[%clk 0:01:20]}  bxa4 {[%clk 0:00:57]} 24. bxa4 {[%clk 0:01:20]}  Kf8 {[%clk 0:00:52]} 25. f4 {[%clk 0:01:05]}  f5 {[%clk 0:00:44]} 26. Nb3 {[%clk 0:01:03]}  g6 {[%clk 0:00:43]} 27. Kf2 {[%clk 0:00:59]}  Nd5 {[%clk 0:00:37]} 28. Kf3 {[%clk 0:00:41]}  Nb6 {[%clk 0:00:37]} 29. a5 {[%clk 0:00:36]}  Nc4 {[%clk 0:00:37]} 30. Bd4 {[%clk 0:00:35]}  a6 {[%clk 0:00:37]} 31. e4 {[%clk 0:00:34]}  Ke7 {[%clk 0:00:30]} 32. e5 {[%clk 0:00:33]}  Bc7 {[%clk 0:00:29]} 33. Bc3 {[%clk 0:00:29]}  h6 {[%clk 0:00:19]} 34. Ke2 {[%clk 0:00:29]}  g5 {[%clk 0:00:16]} 35. Kd3 {[%clk 0:00:29]}  Na3 {[%clk 0:00:15]} 36. Bb4+ {[%clk 0:00:29]}  Kd7 {[%clk 0:00:14]} 37. Bxa3 {[%clk 0:00:29]}  gxf4 {[%clk 0:00:15]} 38. gxf4 {[%clk 0:00:29]}  Kc6 {[%clk 0:00:15]} 39. Kc4 {[%clk 0:00:29]}  Bd8 {[%clk 0:00:15]} 40. Bb4 {[%clk 0:00:26]}  h5 {[%clk 0:00:14]} 41. Nc5 {[%clk 0:00:26]}  Bh4 {[%clk 0:00:15]} 42. Nxe6 {[%clk 0:00:25]}  Bf2 {[%clk 0:00:15]} 43. Nd4+ {[%clk 0:00:24]}  Kd7 {[%clk 0:00:15]} 44. e6+ {[%clk 0:00:23]}  Ke8 {[%clk 0:00:15]} 45. Nxf5 {[%clk 0:00:24]}  h4 {[%clk 0:00:15]} 46. Ng7+ {[%clk 0:00:22]}  Kd8 {[%clk 0:00:15]} 47. e7+ {[%clk 0:00:23]}  Kc7 {[%clk 0:00:15]} 48. e8=Q {[%clk 0:00:23]}  h3 {[%clk 0:00:16]} 49. Ne6+ {[%clk 0:00:23]}  Kb7 {[%clk 0:00:16]} 50. Qd7+ {[%clk 0:00:22]}  Ka8 {[%clk 0:00:16]} 51. Qc8+ {[%clk 0:00:21]}  Ka7 {[%clk 0:00:15]} 52. Nd8 {[%clk 0:00:21]} 1-0


[Site "https://www.chess.com"]

[Event "Titled Tuesday Blitz February 22 Late 2022"]
[White "Bodnar, Nikolay"]
[Black "Hoffmann, Asa"]
[WhiteFideId "14106469"]
[BlackFideId "2001470"]
[WhiteElo "2296"]
[BlackElo "2117"]
[Result "1-0"]
[Round "09"]
[TimeControl "180+1"]
[Date "2022.02.23"]
[WhiteClock "0:00:21"]
[BlackClock "0:00:15"]

1. e4 {[%clk 0:03:00]}  d6 {[%clk 0:02:55]} 2. d4 {[%clk 0:03:00]}  Nf6 {[%clk 0:02:52]} 3. Nc3 {[%clk 0:03:00]}  c6 {[%clk 0:02:51]} 4. f4 {[%clk 0:02:52]}  Qa5 {[%clk 0:02:51]} 5. Bd3 {[%clk 0:02:49]}  e5 {[%clk 0:02:50]} 6. dxe5 {[%clk 0:02:41]}  dxe5 {[%clk 0:02:49]} 7. Nf3 {[%clk 0:02:42]}  Nbd7 {[%clk 0:02:43]} 8. O-O {[%clk 0:02:40]}  Bd6 {[%clk 0:02:41]} 9. f5 {[%clk 0:02:30]}  Bc5+ {[%clk 0:02:40]} 10. Kh1 {[%clk 0:02:30]}  Ng4 {[%clk 0:02:36]} 11. Qe1 {[%clk 0:02:27]}  h5 {[%clk 0:02:33]} 12. h3 {[%clk 0:02:16]}  b5 {[%clk 0:02:30]} 13. hxg4 {[%clk 0:02:11]}  hxg4+ {[%clk 0:02:28]} 14. Nh2 {[%clk 0:02:12]}  Nf6 {[%clk 0:02:20]} 15. Be3 {[%clk 0:02:04]}  Qb6 {[%clk 0:02:13]} 16. Bxc5 {[%clk 0:01:59]}  Qxc5 {[%clk 0:02:13]} 17. Qg3 {[%clk 0:01:55]}  Bd7 {[%clk 0:02:09]} 18. Nd1 {[%clk 0:01:53]}  O-O-O {[%clk 0:02:02]} 19. Ne3 {[%clk 0:01:51]}  Nh5 {[%clk 0:01:59]} 20. Qe1 {[%clk 0:01:13]}  g3 {[%clk 0:01:53]} 21. b4 {[%clk 0:01:02]}  Qe7 {[%clk 0:01:42]} 22. a4 {[%clk 0:00:33]}  gxh2 {[%clk 0:01:39]} 23. axb5 {[%clk 0:00:31]}  Qg5 {[%clk 0:01:36]} 24. Rf3 {[%clk 0:00:31]}  cxb5 {[%clk 0:01:28]} 25. Nd5 {[%clk 0:00:27]}  Bc6 {[%clk 0:01:23]} 26. Rxa7 {[%clk 0:00:19]}  Bxd5 {[%clk 0:01:14]} 27. exd5 {[%clk 0:00:19]}  Kb8 {[%clk 0:01:00]} 28. Qa1 {[%clk 0:00:19]}  Ng3+ {[%clk 0:00:20]} 29. Rxg3 {[%clk 0:00:19]}  Qxg3 {[%clk 0:00:20]} 30. Ra8+ {[%clk 0:00:19]}  Kc7 {[%clk 0:00:20]} 31. Qa7+ {[%clk 0:00:19]}  Kd6 {[%clk 0:00:17]} 32. Qc5+ {[%clk 0:00:20]}  Kd7 {[%clk 0:00:15]} 33. Ra7+ {[%clk 0:00:21]} 1-0


[Site "https://www.chess.com"]

[Event "Titled Tuesday Blitz February 22 Late 2022"]
[White "Borisova, Ekaterina"]
[Black "Qashashvili, Alexandre"]
[WhiteFideId "34124184"]
[BlackFideId "13600842"]
[WhiteElo "2034"]
[BlackElo "2316"]
[Result "0-1"]
[Round "09"]
[TimeControl "180+1"]
[Date "2022.02.23"]
[WhiteClock "0:00:01"]
[BlackClock "0:00:19"]

1. d4 {[%clk 0:03:00]}  d5 {[%clk 0:03:00]} 2. c4 {[%clk 0:02:59]}  c6 {[%clk 0:03:00]} 3. cxd5 {[%clk 0:02:59]}  cxd5 {[%clk 0:03:00]} 4. Bf4 {[%clk 0:03:00]}  Nf6 {[%clk 0:03:00]} 5. Nc3 {[%clk 0:02:59]}  Nc6 {[%clk 0:03:00]} 6. e3 {[%clk 0:02:59]}  Bg4 {[%clk 0:03:00]} 7. Nf3 {[%clk 0:02:57]}  e6 {[%clk 0:03:00]} 8. Qb3 {[%clk 0:02:56]}  Qb6 {[%clk 0:03:00]} 9. Qxb6 {[%clk 0:02:51]}  axb6 {[%clk 0:03:01]} 10. Ne5 {[%clk 0:02:51]}  Nxe5 {[%clk 0:02:58]} 11. Bxe5 {[%clk 0:02:49]}  Bb4 {[%clk 0:02:57]} 12. f3 {[%clk 0:02:41]}  Bh5 {[%clk 0:02:55]} 13. Bb5+ {[%clk 0:02:30]}  Ke7 {[%clk 0:02:54]} 14. Kd2 {[%clk 0:02:28]}  Bd6 {[%clk 0:02:52]} 15. Bg3 {[%clk 0:02:18]}  Bxg3 {[%clk 0:02:46]} 16. hxg3 {[%clk 0:02:17]}  Rhc8 {[%clk 0:02:41]} 17. a3 {[%clk 0:02:09]}  Bg6 {[%clk 0:02:34]} 18. Rac1 {[%clk 0:02:00]}  Ne8 {[%clk 0:02:31]} 19. Bxe8 {[%clk 0:01:47]}  Kxe8 {[%clk 0:02:27]} 20. e4 {[%clk 0:01:30]}  dxe4 {[%clk 0:02:25]} 21. fxe4 {[%clk 0:01:29]}  f6 {[%clk 0:02:25]} 22. Ke3 {[%clk 0:01:26]}  Ke7 {[%clk 0:02:18]} 23. Na2 {[%clk 0:01:24]}  h6 {[%clk 0:02:09]} 24. Nb4 {[%clk 0:01:23]}  Be8 {[%clk 0:02:04]} 25. Nd3 {[%clk 0:01:14]}  Bb5 {[%clk 0:02:00]} 26. Nf4 {[%clk 0:01:14]}  Kf7 {[%clk 0:01:41]} 27. e5 {[%clk 0:01:11]}  fxe5 {[%clk 0:01:28]} 28. dxe5 {[%clk 0:01:11]}  Rc5 {[%clk 0:01:19]} 29. Rxc5 {[%clk 0:01:02]}  bxc5 {[%clk 0:01:19]} 30. Rd1 {[%clk 0:01:01]}  Ke7 {[%clk 0:01:08]} 31. Rd6 {[%clk 0:01:00]}  Ra6 {[%clk 0:01:07]} 32. Rxa6 {[%clk 0:00:50]}  Bxa6 {[%clk 0:01:08]} 33. b4 {[%clk 0:00:39]}  cxb4 {[%clk 0:01:06]} 34. axb4 {[%clk 0:00:39]}  Bf1 {[%clk 0:01:05]} 35. Kd4 {[%clk 0:00:34]}  b6 {[%clk 0:01:03]} 36. Ng6+ {[%clk 0:00:24]}  Kf7 {[%clk 0:01:02]} 37. Nh4 {[%clk 0:00:23]}  Ke7 {[%clk 0:01:01]} 38. Nf3 {[%clk 0:00:17]}  Bxg2 {[%clk 0:00:56]} 39. Ne1 {[%clk 0:00:16]}  Bf1 {[%clk 0:00:55]} 40. Nc2 {[%clk 0:00:14]}  Kf7 {[%clk 0:00:50]} 41. Na3 {[%clk 0:00:10]}  h5 {[%clk 0:00:44]} 42. Nb1 {[%clk 0:00:09]}  g5 {[%clk 0:00:39]} 43. Nd2 {[%clk 0:00:09]}  Be2 {[%clk 0:00:39]} 44. Ne4 {[%clk 0:00:09]}  Kg6 {[%clk 0:00:38]} 45. Ke3 {[%clk 0:00:09]}  Ba6 {[%clk 0:00:29]} 46. Nd6 {[%clk 0:00:08]}  Bf1 {[%clk 0:00:26]} 47. Ke4 {[%clk 0:00:05]}  Be2 {[%clk 0:00:23]} 48. Ke3 {[%clk 0:00:05]}  Bf1 {[%clk 0:00:21]} 49. Nc8 {[%clk 0:00:05]}  b5 {[%clk 0:00:20]} 50. Nd6 {[%clk 0:00:05]}  h4 {[%clk 0:00:20]} 51. gxh4 {[%clk 0:00:02]}  gxh4 {[%clk 0:00:21]} 52. Kf4 {[%clk 0:00:03]}  Kh5 {[%clk 0:00:21]} 53. Ne4 {[%clk 0:00:03]}  Bc4 {[%clk 0:00:19]} 54. Nf6+ {[%clk 0:00:01]}  Kg6 {[%clk 0:00:19]} 0-1


[Site "https://www.chess.com"]

[Event "Titled Tuesday Blitz February 22 Late 2022"]
[White "Buchenau, Frank"]
[Black "Tan, Jun Ying"]
[WhiteFideId "4604350"]
[BlackFideId "5710413"]
[WhiteElo "2193"]
[BlackElo "1827"]
[Result "1-0"]
[Round "09"]
[TimeControl "180+1"]
[Date "2022.02.23"]
[WhiteClock "0:00:15"]
[BlackClock "0:00:07"]

1. e4 {[%clk 0:03:00]}  c5 {[%clk 0:03:00]} 2. Nf3 {[%clk 0:03:00]}  Nc6 {[%clk 0:03:00]} 3. Bb5 {[%clk 0:03:00]}  d6 {[%clk 0:03:00]} 4. O-O {[%clk 0:03:00]}  Bd7 {[%clk 0:03:00]} 5. Re1 {[%clk 0:03:00]}  Nf6 {[%clk 0:03:00]} 6. c3 {[%clk 0:02:59]}  a6 {[%clk 0:03:00]} 7. Bc4 {[%clk 0:02:59]}  Bg4 {[%clk 0:02:59]} 8. d4 {[%clk 0:02:56]}  Bxf3 {[%clk 0:02:58]} 9. gxf3 {[%clk 0:02:55]}  e6 {[%clk 0:02:59]} 10. d5 {[%clk 0:02:49]}  Ne5 {[%clk 0:02:57]} 11. Bf1 {[%clk 0:02:47]}  g5 {[%clk 0:02:57]} 12. f4 {[%clk 0:02:31]}  gxf4 {[%clk 0:02:51]} 13. Bxf4 {[%clk 0:02:31]}  Rg8+ {[%clk 0:02:50]} 14. Kh1 {[%clk 0:02:29]}  Nfg4 {[%clk 0:02:28]} 15. Qe2 {[%clk 0:02:27]}  Nd3 {[%clk 0:02:04]} 16. Bg3 {[%clk 0:02:11]}  Nxe1 {[%clk 0:01:57]} 17. Qxe1 {[%clk 0:02:11]}  e5 {[%clk 0:01:52]} 18. a4 {[%clk 0:02:06]}  h5 {[%clk 0:01:45]} 19. f3 {[%clk 0:02:02]}  Nf6 {[%clk 0:01:29]} 20. Na3 {[%clk 0:02:02]}  Bh6 {[%clk 0:01:20]} 21. Nc4 {[%clk 0:01:56]}  Ke7 {[%clk 0:01:15]} 22. a5 {[%clk 0:01:50]}  Bg5 {[%clk 0:01:07]} 23. b4 {[%clk 0:01:46]}  cxb4 {[%clk 0:01:05]} 24. Rb1 {[%clk 0:01:46]}  Nd7 {[%clk 0:00:51]} 25. cxb4 {[%clk 0:01:39]}  Qf8 {[%clk 0:00:38]} 26. Bh3 {[%clk 0:01:37]}  Rd8 {[%clk 0:00:33]} 27. b5 {[%clk 0:01:25]}  Qh6 {[%clk 0:00:32]} 28. bxa6 {[%clk 0:01:23]}  bxa6 {[%clk 0:00:33]} 29. Rb7 {[%clk 0:01:23]}  h4 {[%clk 0:00:32]} 30. Bf2 {[%clk 0:01:20]}  Ke8 {[%clk 0:00:28]} 31. Nb6 {[%clk 0:01:04]}  Nxb6 {[%clk 0:00:25]} 32. axb6 {[%clk 0:01:03]}  Bd2 {[%clk 0:00:24]} 33. Qd1 {[%clk 0:00:54]}  Be3 {[%clk 0:00:20]} 34. Bxe3 {[%clk 0:00:30]}  Qxe3 {[%clk 0:00:21]} 35. Bg4 {[%clk 0:00:20]}  f5 {[%clk 0:00:09]} 36. exf5 {[%clk 0:00:19]}  e4 {[%clk 0:00:07]} 37. Bh5+ {[%clk 0:00:19]}  Kf8 {[%clk 0:00:07]} 38. Rf7+ {[%clk 0:00:19]}  Ke8 {[%clk 0:00:08]} 39. Qa4+ {[%clk 0:00:15]}  Rd7 {[%clk 0:00:07]} 40. Qxd7# {[%clk 0:00:15]} 1-0


[Site "https://www.chess.com"]

[Event "Titled Tuesday Blitz February 22 Late 2022"]
[White "Carbone, Diego"]
[Black "Mogranzini, Roberto"]
[WhiteFideId "3002179"]
[BlackFideId "810894"]
[WhiteElo "2199"]
[BlackElo "2469"]
[Result "0-1"]
[Round "09"]
[TimeControl "180+1"]
[Date "2022.02.23"]
[WhiteClock "0:00:01"]
[BlackClock "0:00:16"]

1. d4 {[%clk 0:02:54]}  Nf6 {[%clk 0:02:59]} 2. c4 {[%clk 0:02:54]}  d6 {[%clk 0:02:59]} 3. g3 {[%clk 0:02:54]}  g6 {[%clk 0:02:59]} 4. Nf3 {[%clk 0:02:54]}  Bg7 {[%clk 0:03:00]} 5. Bg2 {[%clk 0:02:54]}  O-O {[%clk 0:03:00]} 6. Nc3 {[%clk 0:02:55]}  Nc6 {[%clk 0:03:01]} 7. O-O {[%clk 0:02:55]}  Bf5 {[%clk 0:03:00]} 8. d5 {[%clk 0:02:53]}  Na5 {[%clk 0:02:59]} 9. Nd4 {[%clk 0:02:52]}  Bd7 {[%clk 0:02:58]} 10. b3 {[%clk 0:02:52]}  c5 {[%clk 0:02:58]} 11. dxc6 {[%clk 0:02:50]}  bxc6 {[%clk 0:02:54]} 12. Bb2 {[%clk 0:02:38]}  Rb8 {[%clk 0:02:52]} 13. Qd2 {[%clk 0:02:36]}  c5 {[%clk 0:02:46]} 14. Nf3 {[%clk 0:02:36]}  Bc6 {[%clk 0:02:27]} 15. Rac1 {[%clk 0:02:19]}  Qb6 {[%clk 0:02:25]} 16. Ba1 {[%clk 0:02:08]}  Rfd8 {[%clk 0:02:21]} 17. Rfd1 {[%clk 0:02:08]}  Ne4 {[%clk 0:01:55]} 18. Nxe4 {[%clk 0:02:02]}  Bxe4 {[%clk 0:01:56]} 19. Bxg7 {[%clk 0:02:01]}  Kxg7 {[%clk 0:01:57]} 20. Qc3+ {[%clk 0:01:52]}  Kg8 {[%clk 0:01:55]} 21. h4 {[%clk 0:01:44]}  Nc6 {[%clk 0:01:53]} 22. h5 {[%clk 0:01:41]}  Bxf3 {[%clk 0:01:50]} 23. Bxf3 {[%clk 0:01:30]}  Nd4 {[%clk 0:01:43]} 24. Kg2 {[%clk 0:01:18]}  Qb4 {[%clk 0:01:26]} 25. Qd3 {[%clk 0:01:11]}  a5 {[%clk 0:01:18]} 26. hxg6 {[%clk 0:00:59]}  hxg6 {[%clk 0:01:17]} 27. Bd5 {[%clk 0:01:00]}  Kg7 {[%clk 0:01:05]} 28. e3 {[%clk 0:00:58]}  Nf5 {[%clk 0:01:01]} 29. Be4 {[%clk 0:00:50]}  Nh6 {[%clk 0:00:57]} 30. Rc3 {[%clk 0:00:31]}  Ng4 {[%clk 0:00:53]} 31. Rcc1 {[%clk 0:00:12]}  Nf6 {[%clk 0:00:52]} 32. Bf3 {[%clk 0:00:12]}  a4 {[%clk 0:00:52]} 33. Rc3 {[%clk 0:00:11]}  axb3 {[%clk 0:00:49]} 34. axb3 {[%clk 0:00:12]}  Qa5 {[%clk 0:00:45]} 35. Rdc1 {[%clk 0:00:11]}  Rh8 {[%clk 0:00:38]} 36. g4 {[%clk 0:00:10]}  Rh4 {[%clk 0:00:26]} 37. Rh1 {[%clk 0:00:06]}  Rxh1 {[%clk 0:00:24]} 38. Kxh1 {[%clk 0:00:07]}  Qa1+ {[%clk 0:00:23]} 39. Kg2 {[%clk 0:00:07]}  Rh8 {[%clk 0:00:22]} 40. Kg3 {[%clk 0:00:01]}  Qg1+ {[%clk 0:00:19]} 41. Bg2 {[%clk 0:00:01]}  Qh2+ {[%clk 0:00:16]} 0-1


[Site "https://www.chess.com"]

[Event "Titled Tuesday Blitz February 22 Late 2022"]
[White "Carlsson, Ludvig"]
[Black "Avila Pavas, Santiago"]
[WhiteFideId "1727010"]
[BlackFideId "4437128"]
[WhiteElo "2178"]
[BlackElo "2242"]
[Result "1-0"]
[Round "09"]
[TimeControl "180+1"]
[Date "2022.02.22"]
[WhiteClock "0:00:06"]
[BlackClock "0:00:26"]

1. Nf3 {[%clk 0:03:00]}  Nf6 {[%clk 0:03:00]} 2. c4 {[%clk 0:03:00]}  e6 {[%clk 0:03:01]} 3. Nc3 {[%clk 0:03:00]}  d5 {[%clk 0:03:01]} 4. d4 {[%clk 0:03:00]}  a6 {[%clk 0:03:01]} 5. e3 {[%clk 0:02:57]}  Bd6 {[%clk 0:03:00]} 6. b3 {[%clk 0:02:56]}  b6 {[%clk 0:03:01]} 7. Bb2 {[%clk 0:02:56]}  Bb7 {[%clk 0:03:01]} 8. Bd3 {[%clk 0:02:55]}  Nbd7 {[%clk 0:03:02]} 9. O-O {[%clk 0:02:55]}  O-O {[%clk 0:03:02]} 10. Rc1 {[%clk 0:02:55]}  Ne4 {[%clk 0:03:01]} 11. Ne2 {[%clk 0:02:45]}  f5 {[%clk 0:03:00]} 12. Nf4 {[%clk 0:02:43]}  Qf6 {[%clk 0:02:53]} 13. Be2 {[%clk 0:02:35]}  Qh6 {[%clk 0:02:33]} 14. Ne5 {[%clk 0:02:19]}  Rad8 {[%clk 0:01:56]} 15. f3 {[%clk 0:02:10]}  Nef6 {[%clk 0:01:55]} 16. Nxe6 {[%clk 0:02:04]}  Ng4 {[%clk 0:01:45]} 17. fxg4 {[%clk 0:02:02]}  Qxe6 {[%clk 0:01:44]} 18. gxf5 {[%clk 0:02:01]}  Qe7 {[%clk 0:01:43]} 19. cxd5 {[%clk 0:01:40]}  Nxe5 {[%clk 0:01:37]} 20. dxe5 {[%clk 0:01:41]}  Bxe5 {[%clk 0:01:38]} 21. Bxe5 {[%clk 0:01:34]}  Qxe5 {[%clk 0:01:38]} 22. Qd4 {[%clk 0:01:34]}  Qxd4 {[%clk 0:01:34]} 23. exd4 {[%clk 0:01:35]}  Rf7 {[%clk 0:01:35]} 24. d6 {[%clk 0:01:22]}  Rxd6 {[%clk 0:01:10]} 25. Bc4 {[%clk 0:01:22]}  Bd5 {[%clk 0:01:11]} 26. Bxa6 {[%clk 0:01:22]}  Kf8 {[%clk 0:01:11]} 27. Bc4 {[%clk 0:01:13]}  Rfd7 {[%clk 0:01:06]} 28. Bxd5 {[%clk 0:00:58]}  Rxd5 {[%clk 0:01:07]} 29. Rf4 {[%clk 0:00:57]}  Ke7 {[%clk 0:00:45]} 30. Kf2 {[%clk 0:00:53]}  Kf6 {[%clk 0:00:40]} 31. Rc6+ {[%clk 0:00:50]}  Kg5 {[%clk 0:00:32]} 32. Kf3 {[%clk 0:00:45]}  Rxd4 {[%clk 0:00:28]} 33. h4+ {[%clk 0:00:44]}  Kh5 {[%clk 0:00:29]} 34. Rxd4 {[%clk 0:00:35]}  Rxd4 {[%clk 0:00:30]} 35. Rxc7 {[%clk 0:00:36]}  Rg4 {[%clk 0:00:25]} 36. f6 {[%clk 0:00:28]}  Rg6 {[%clk 0:00:22]} 37. fxg7 {[%clk 0:00:10]}  Kxh4 {[%clk 0:00:23]} 38. Rc6 {[%clk 0:00:08]}  Rxg7 {[%clk 0:00:22]} 39. Rxb6 {[%clk 0:00:08]}  Rf7+ {[%clk 0:00:22]} 40. Ke3 {[%clk 0:00:06]}  Kg3 {[%clk 0:00:23]} 41. a4 {[%clk 0:00:05]}  Kxg2 {[%clk 0:00:23]} 42. a5 {[%clk 0:00:05]}  h5 {[%clk 0:00:23]} 43. Rh6 {[%clk 0:00:04]}  Rf5 {[%clk 0:00:23]} 44. a6 {[%clk 0:00:04]}  Kg3 {[%clk 0:00:21]} 45. b4 {[%clk 0:00:04]}  h4 {[%clk 0:00:19]} 46. a7 {[%clk 0:00:04]}  Rf8 {[%clk 0:00:20]} 47. b5 {[%clk 0:00:04]}  h3 {[%clk 0:00:20]} 48. b6 {[%clk 0:00:04]}  h2 {[%clk 0:00:21]} 49. Rxh2 {[%clk 0:00:03]}  Re8+ {[%clk 0:00:20]} 50. Kd4 {[%clk 0:00:03]}  Kxh2 {[%clk 0:00:21]} 51. Kc5 {[%clk 0:00:03]}  Re5+ {[%clk 0:00:21]} 52. Kc6 {[%clk 0:00:04]}  Rh5 {[%clk 0:00:22]} 53. b7 {[%clk 0:00:04]}  Rh6+ {[%clk 0:00:22]} 54. Kb5 {[%clk 0:00:04]}  Rh5+ {[%clk 0:00:23]} 55. Kb6 {[%clk 0:00:05]}  Rh6+ {[%clk 0:00:23]} 56. Kc5 {[%clk 0:00:05]}  Rh5+ {[%clk 0:00:24]} 57. Kd4 {[%clk 0:00:05]}  Rh4+ {[%clk 0:00:25]} 58. Ke3 {[%clk 0:00:06]}  Rh3+ {[%clk 0:00:25]} 59. Kf4 {[%clk 0:00:06]}  Rb3 {[%clk 0:00:25]} 60. b8=Q {[%clk 0:00:06]}  Rb5 {[%clk 0:00:26]} 1-0


[Site "https://www.chess.com"]

[Event "Titled Tuesday Blitz February 22 Late 2022"]
[White "Chigaev, Maksim"]
[Black "Hess, Robert"]
[WhiteFideId "4108116"]
[BlackFideId "2022036"]
[WhiteElo "2502"]
[BlackElo "2557"]
[Result "1-0"]
[Round "09"]
[TimeControl "180+1"]
[Date "2022.02.22"]
[WhiteClock "0:01:01"]
[BlackClock "0:00:03"]

1. d4 {[%clk 0:03:00]}  g6 {[%clk 0:03:00]} 2. e4 {[%clk 0:03:00]}  Bg7 {[%clk 0:03:01]} 3. Nc3 {[%clk 0:03:01]}  a6 {[%clk 0:03:01]} 4. Be3 {[%clk 0:02:53]}  e6 {[%clk 0:03:01]} 5. h4 {[%clk 0:02:53]}  h6 {[%clk 0:03:01]} 6. Qd2 {[%clk 0:02:52]}  d6 {[%clk 0:03:01]} 7. h5 {[%clk 0:02:51]}  g5 {[%clk 0:03:01]} 8. f4 {[%clk 0:02:51]}  gxf4 {[%clk 0:03:02]} 9. Bxf4 {[%clk 0:02:52]}  Nc6 {[%clk 0:03:02]} 10. Nf3 {[%clk 0:02:52]}  Nf6 {[%clk 0:03:02]} 11. O-O-O {[%clk 0:02:52]}  Ng4 {[%clk 0:02:32]} 12. Qe1 {[%clk 0:02:31]}  Rg8 {[%clk 0:02:21]} 13. Kb1 {[%clk 0:02:25]}  Qe7 {[%clk 0:02:07]} 14. g3 {[%clk 0:02:22]}  Bd7 {[%clk 0:01:58]} 15. Bh3 {[%clk 0:02:15]}  Nf6 {[%clk 0:01:58]} 16. Bg2 {[%clk 0:01:58]}  e5 {[%clk 0:01:40]} 17. dxe5 {[%clk 0:01:57]}  dxe5 {[%clk 0:01:36]} 18. Be3 {[%clk 0:01:54]}  O-O-O {[%clk 0:01:35]} 19. Nd5 {[%clk 0:01:48]}  Qf8 {[%clk 0:01:06]} 20. Nh4 {[%clk 0:01:22]}  Bg4 {[%clk 0:00:57]} 21. Rd3 {[%clk 0:01:19]}  Nxd5 {[%clk 0:00:33]} 22. exd5 {[%clk 0:01:20]}  Nb4 {[%clk 0:00:33]} 23. Rb3 {[%clk 0:01:20]}  Nxd5 {[%clk 0:00:22]} 24. c4 {[%clk 0:01:20]}  Nb6 {[%clk 0:00:17]} 25. Bxb6 {[%clk 0:01:16]}  cxb6 {[%clk 0:00:16]} 26. Qe4 {[%clk 0:01:15]}  Rd7 {[%clk 0:00:04]} 27. Qxg4 {[%clk 0:01:13]}  Bf6 {[%clk 0:00:04]} 28. Qf5 {[%clk 0:01:07]}  Bd8 {[%clk 0:00:03]} 29. Rd1 {[%clk 0:01:01]} 1-0


[Site "https://www.chess.com"]